fUSD/lending_fUSD_20260115
["ID","MTS","AMOUNT","RATE_DAILY","PERIOD"]
[402105923,1768519839571,-500.0,0.00016438,2]
[402105924,1768519839580,-500.0,0.00016438,2]
[402105927,1768519839590,-500.0,0.00016438,2]
[402105928,1768519839599,-500.0,0.00016438,2]
[402105931,1768519839608,-500.0,0.00016438,2]
[402105932,1768519839618,-500.0,0.00016438,2]
[402105934,1768519839627,-500.0,0.00016438,2]
[402105937,1768519839636,-500.0,0.00016438,2]
[402105938,1768519839646,-500.0,0.00016438,2]
[402105940,1768519839655,-537.40325686,0.00016438,2]
[402105942,1768519839664,-500.0,0.00016438,2]
[402105944,1768519839673,-500.0,0.00016438,2]
[402105946,1768519839682,-500.0,0.00016438,2]
[402105948,1768519839691,-500.0,0.00016438,2]
[402105950,1768519839700,-500.0,0.00016438,2]
[402105952,1768519839710,-500.0,0.00016438,2]
[402105954,1768519839719,-500.0,0.00016438,2]
[402105957,1768519839728,-500.0,0.00016438,2]
[402105958,1768519839738,-500.0,0.00016438,2]
[402105959,1768519839747,-500.0,0.00016438,2]
[402105960,1768519839756,-500.0,0.00016438,2]
[402105961,1768519839764,-500.0,0.00016438,2]
[402105962,1768519839773,-500.0,0.00016438,2]
[402105963,1768519839783,-500.0,0.00016438,2]
[402105964,1768519839792,-434.78441347,0.00016438,2]
[402105965,1768519839800,-151.0,0.00016491,2]
[402105966,1768519839809,-151.0,0.00016491,2]
[402105967,1768519839819,-151.0,0.00016526,2]
[402105968,1768519839827,-151.0,0.00016526,2]
[402105969,1768519839837,-4409.58735812,0.00016529,2]
[402105970,1768519839846,-272.51639976,0.00016561,2]
[402105971,1768519839855,-258.19,0.00016713,2]
[402105972,1768519839864,-2697.78679878,0.0001673,2]
[402105973,1768519839872,-15075.63577265,0.00016761,2]
[402105974,1768519839882,-4409.58735812,0.00016764,2]
[402105975,1768519839892,-8969.76,0.00016922,2]
[402105976,1768519839901,-1174.96,0.00016922,2]
[402105977,1768519839910,-9999.99,0.00016922,2]
[402105978,1768519839919,-510.0,0.00016947,2]
[402105979,1768519839928,-500.0,0.00016973,2]
[402105980,1768519839937,-500.0,0.00016973,2]
[402105981,1768519839946,-500.0,0.00016973,2]
[402105982,1768519839955,-500.0,0.00016973,2]
[402105983,1768519839964,-500.0,0.00016973,2]
[402105985,1768519839974,-500.0,0.00016973,2]
[402105986,1768519839983,-500.0,0.00016973,2]
[402105987,1768519839992,-500.0,0.00016973,2]
[402105989,1768519840001,-4409.58735812,0.00016998,2]
[402105991,1768519840011,-2697.78679878,0.00017032,2]
[402105993,1768519840020,-4409.58735812,0.00017233,2]
[402105995,1768519840029,-252.8,0.00017257,2]
[402105997,1768519840038,-420.0,0.00017303,2]
[402105999,1768519840048,-289.5,0.00017324,2]
[402106001,1768519840057,-150.0,0.00017331,2]
[402106003,1768519840066,-2697.78679878,0.00017333,2]
[402106005,1768519840075,-514.0,0.00017367,2]
[402106007,1768519840084,-1680.0,0.0001739,2]
[402106009,1768519840093,-4409.58735812,0.00017467,2]
[402106011,1768519840102,-250.0,0.00017505,2]
[402106012,1768519840111,-150.0,0.00017518,2]
[402106014,1768519840120,-1000.0,0.00017521,2]
[402106016,1768519840129,-1000.0,0.00017521,2]
[402106018,1768519840138,-1000.0,0.00017521,2]
[402106020,1768519840147,-1000.0,0.00017521,2]
[402106022,1768519840157,-1000.0,0.00017521,2]
[402106024,1768519840167,-1000.0,0.00017521,2]
[402106026,1768519840176,-331.99614292,0.00017521,2]
[402106028,1768519840185,-500.0,0.00017521,2]
[402106030,1768519840194,-2697.78679878,0.00017635,2]
[402106033,1768519840204,-299.81,0.00017684,2]
[402106035,1768519840213,-4409.58735812,0.00017702,2]
[402106037,1768519840222,-514.0,0.00017752,2]
[402106039,1768519840232,-500.0,0.00017753,2]
[402106041,1768519840241,-375.1068587,0.000179,2]
[402106044,1768519840250,-1999.47404927,0.000179,2]
[402106045,1768519840259,-2256.71405876,0.000179,2]
[402106048,1768519840269,-772.38800215,0.000179,2]
[402106049,1768519840278,-2697.78679878,0.00017936,2]
[402106051,1768519840287,-4409.58735812,0.00017936,2]
[402106053,1768519840296,-514.0,0.0001794,2]
[402106056,1768519840307,-514.0,0.00017955,2]
[402106058,1768519840320,-500.0,0.00017973,2]
[402106060,1768519840330,-500.0,0.00017973,2]
[402106062,1768519840339,-500.0,0.00017973,2]
[402106064,1768519840347,-500.0,0.00017973,2]
[402106065,1768519840358,-500.0,0.00017973,2]
[402106068,1768519840367,-500.0,0.00017973,2]
[402106069,1768519840379,-500.0,0.00017973,2]
[402106072,1768519840389,-500.0,0.00017973,2]
[402106073,1768519840399,-500.0,0.00017973,2]
[402106075,1768519840408,-500.0,0.00017973,2]
[402106077,1768519840418,-500.0,0.00017973,2]
[402106079,1768519840429,-1553.73505408,0.0001799,2]
[402106081,1768519840438,-1553.73505408,0.0001799,2]
[402106083,1768519840447,-300.0,0.00017999,2]
[402106086,1768519840457,-3942028.47253291,0.00018,2]
[402106088,1768519840470,-20486.01599447,0.00018,2]
[402106092,1768519840497,-478.95997779,0.00018,2]
[402106094,1768519840511,-364.26160075,0.00018,2]
[402106096,1768519840522,-4125.73666421,0.00018,2]
[402106147,1768519840984,-386.49005528,0.00018,2]
[402106149,1768519840995,-1219.4810845,0.00018,2]
[402106151,1768519841007,-449.495,0.00018,2]
[402106154,1768519841030,-156629.2008474,0.00018,2]
[402106157,1768519841041,-29244.60056734,0.00018,2]
[402106161,1768519841074,-3049.16502704,0.00018,2]
[402106163,1768519841084,-531.60359658,0.00018,2]
[402106165,1768519841095,-415.52998,0.00018,2]
[402106168,1768519841106,-5469845.53151039,0.00018,2]
[402106170,1768519841115,-37646.22219878,0.00018,2]
[402106172,1768519841124,-103464.83914837,0.00018,2]
[402106174,1768519841133,-285068.4836873,0.00018,2]
[402106391,1768519843368,-107932.3802346,0.00018,2]
[402106392,1768519843379,-557.96001026,0.00018,2]
[402106393,1768519843391,-5545.5,0.00018,2]
[402106394,1768519843403,-424.00898094,0.00018,2]
[402106395,1768519843413,-1821.82014999,0.00018,2]
[402106396,1768519843425,-354.42399738,0.00018,2]
[402106397,1768519843436,-2510.22278198,0.00018,2]
[402106398,1768519843500,-389788.18110826,0.00018,2]
[402106399,1768519843523,-4451.14455791,0.00018,2]
[402106400,1768519843534,-26795.52080366,0.00018,2]
[402106407,1768519843615,-344.63499176,0.00018,2]
[402106408,1768519843626,-13634.60820723,0.00018,2]
[402106412,1768519846244,-344576.15786243,0.00018,2]
[402106413,1768519846255,-2060.48145238,0.00018,2]
[402106414,1768519846266,-404.73403491,0.00018,2]
[402106415,1768519846280,-540.52,0.00018,2]
[402106416,1768519846290,-5760.08966899,0.00018,2]
[402106417,1768519846316,-1866.02809158,0.00018,2]
[402106418,1768519846326,-4545.0,0.00018,2]
[402106419,1768519846392,-1587.635991,0.00018,2]
[402106420,1768519846405,-521.50544742,0.00018,2]
[402106421,1768519846418,-23993.31897178,0.00018,2]
[402106422,1768519846434,-25619.47134896,0.00018,2]
[402106423,1768519846446,-500.0,0.00018,2]
[402106424,1768519846485,-4688.98130205,0.00018,2]
[402106425,1768519846496,-3100.0,0.00018,2]
[402106426,1768519846507,-287400.00000005,0.00018,2]
[402106427,1768519846517,-10465.32943902,0.00018,2]
[402106450,1768519963630,500.0,0.0003013,120]
[402106451,1768520025650,1714.73467416,0.00015724,2]
[402106452,1768520025684,403.9965,0.00015724,2]
[402106453,1768520040501,178.27,8.273e-05,2]
[402106454,1768520040712,178.27,8.708e-05,2]
[402106455,1768520040960,178.27,9.144e-05,2]
[402106456,1768520041166,178.27,9.579e-05,2]
[402106457,1768520041395,178.27,0.00010014,2]
[402106458,1768520041622,178.27,0.0001045,2]
[402106459,1768520041866,178.27,0.00010885,2]
[402106460,1768520042097,178.27,0.00011321,2]
[402106461,1768520042292,178.27,0.00011756,2]
[402106462,1768520042710,178.27,0.00012191,2]
[402106463,1768520042922,178.27,0.00012627,2]
[402106464,1768520043149,178.27,0.00013062,2]
[402106465,1768520043358,178.27,0.00013498,2]
[402106466,1768520043677,178.27,0.00013933,2]
[402106467,1768520043884,178.27,0.00014368,2]
[402106468,1768520044092,178.27,0.00014804,2]
[402106469,1768520044306,178.27,0.00015239,2]
[402106470,1768520044519,178.27,0.00015675,2]
[402106471,1768520051305,1379.686954,0.0003,120]
[402106473,1768520206762,-300.0,0.00015723,2]
[402106474,1768520206801,-1200.0,0.00015723,2]
[402106475,1768520206838,-300.0,0.00015723,2]
[402106476,1768520206875,-250.0,0.00015723,2]
[402106477,1768520206912,-505.43171428,0.00015724,2]
[402106478,1768520207792,-1757.55485716,0.00015724,2]
[402106479,1768520210453,-10000.01,0.00015724,2]
[402106480,1768520218904,-1832.65852595,0.00015724,2]
[402106481,1768520218934,-6334.6929481,0.00015724,2]
[402106482,1768520298440,-390.64855889,0.00015724,2]
[402106483,1768520298487,-9218.71288222,0.00015724,2]
[402106484,1768520298687,-10000.01,0.00015724,2]
[402106485,1768520298840,-2782.99204021,0.00015724,2]
[402106486,1768520298869,-4434.02591958,0.00015724,2]
[402106487,1768520298991,-157.94589674,0.00015734,2]
[402106488,1768520299024,-195.0,0.00015734,2]
[402106489,1768520299059,-193.0,0.00015744,2]
[402106490,1768520299094,-2500.0,0.00015744,2]
[402106491,1768520299129,-250.0,0.00015763,2]
[402106492,1768520299164,-1200.0,0.00015776,2]
[402106493,1768520299428,-1008.11820652,0.00015777,2]
[402106494,1768520301326,-1491.88179348,0.00015777,2]
[402106495,1768520301363,-1352.72085714,0.00015777,2]
[402106496,1768520301400,-300.0,0.00015789,2]
[402106497,1768520301436,-600.0,0.00015789,2]
[402106498,1768520301473,-300.0,0.00015789,2]
[402106499,1768520301510,-195.0,0.00015793,2]
[402106500,1768520301545,-300.0,0.00015814,2]
[402106501,1768520301580,-151.0,0.00015815,2]
[402106502,1768520301615,-151.0,0.00015815,2]
[402106503,1768520301648,-151.0,0.00015815,2]
[402106504,1768520302386,-14.80469876,0.00015815,2]
[402106505,1768520304388,-136.19530124,0.00015815,2]
[402106506,1768520304421,-151.0,0.00015815,2]
[402106507,1768520304454,-151.0,0.00015815,2]
[402106508,1768520304489,-151.0,0.00015815,2]
[402106509,1768520304526,-151.0,0.00015815,2]
[402106510,1768520304556,-200.0,0.00015815,2]
[402106511,1768520304590,-151.0,0.00015815,2]
[402106512,1768520304624,-151.0,0.00015815,2]
[402106513,1768520304656,-151.0,0.00015815,2]
[402106514,1768520304687,-151.0,0.00015815,2]
[402106515,1768520304720,-151.0,0.00015815,2]
[402106516,1768520304752,-151.0,0.00015815,2]
[402106517,1768520304783,-151.0,0.00015815,2]
[402106518,1768520304816,-151.0,0.00015815,2]
[402106519,1768520304848,-151.0,0.00015815,2]
[402106520,1768520304883,-151.0,0.00015815,2]
[402106521,1768520304918,-151.0,0.00015815,2]
[402106522,1768520304950,-151.0,0.00015815,2]
[402106523,1768520304981,-200.0,0.00015815,2]
[402106524,1768520305013,-500.0,0.00015815,2]
[402106525,1768520305045,-151.0,0.00015815,2]
[402106526,1768520305076,-151.0,0.00015815,2]
[402106527,1768520305112,-151.0,0.00015815,2]
[402106528,1768520305146,-151.0,0.00015815,2]
[402106529,1768520305178,-151.0,0.00015815,2]
[402106530,1768520305210,-151.0,0.00015815,2]
[402106531,1768520305243,-151.0,0.00015815,2]
[402106532,1768520305275,-151.0,0.00015815,2]
[402106533,1768520305308,-151.0,0.00015815,2]
[402106534,1768520305341,-151.0,0.00015815,2]
[402106535,1768520305536,-151.0,0.00015815,2]
[402106536,1768520305572,-300.0,0.00015823,2]
[402106537,1768520307187,-75.61939752,0.00015824,2]
[402106538,1768520307232,-9098.01,0.00015824,2]
[402106539,1768520307352,-10000.01,0.00015824,2]
[402106540,1768520308066,-10000.01,0.00015824,2]
[402106541,1768520338946,151.0,0.00030136,120]
[402106542,1768520420141,1780.272548,0.00015645,2]
[402106543,1768520441829,183.99767392,0.00015684,2]
[402106544,1768520455796,1402.07692419,0.00019774,30]
[402106545,1768520494293,1076.984,0.00015508,2]
[402106546,1768520495394,-183.99767391,0.00015704,2]
[402106547,1768520495428,-281.0,0.00015724,2]
[402106548,1768520495462,-183.99767391,0.00015724,2]
[402106549,1768520495495,-2500.0,0.00015724,2]
[402106550,1768520495530,-195.0,0.00015784,2]
[402106551,1768520495564,-300.0,0.00015823,2]
[402106552,1768520495602,-1200.0,0.00015823,2]
[402106553,1768520505641,-500.0,0.00015724,2]
[402106554,1768520505683,-500.0,0.00015724,2]
[402106555,1768520505722,-500.0,0.00015724,2]
[402106556,1768520505760,-2964.94799752,0.00015824,2]
[402106557,1768520507442,-2900.9314631,0.00015724,2]
[402106558,1768520507479,-500.0,0.00015724,2]
[402106559,1768520507518,-500.0,0.00015724,2]
[402106560,1768520507556,-500.0,0.00015724,2]
[402106561,1768520507600,-128.03306884,0.00015824,2]
[402106562,1768520603656,-1200.0,0.00015723,2]
[402106563,1768520603695,-260.4323726,0.00015724,2]
[402106564,1768520603791,-6408.35950024,0.00015724,2]
[402106565,1768520606781,300.0,0.00030136,120]
[402106566,1768520612558,-10000.01,0.00015724,2]
[402106567,1768520635795,1182.63347286,0.00015624,2]
[402106568,1768520659250,7579.68,0.00012301,2]
[402106569,1768520700718,2420.33,0.00015051,2]
[402106570,1768520700747,10000.01,0.00015051,2]
[402106571,1768520700773,1614.1,0.00015051,2]
[402106574,1768520714387,-1200.0,0.00015723,2]
[402106575,1768520714424,-300.0,0.00015723,2]
[402106576,1768520714459,-300.0,0.00015723,2]
[402106577,1768520714496,-300.0,0.00015723,2]
[402106578,1768520714532,-300.0,0.00015724,2]
[402106579,1768520714570,-300.0,0.00015724,2]
[402106580,1768520714609,-235.78391465,0.00015724,2]
[402106581,1768520714648,-443.85820219,0.00015724,2]
[402106582,1768520715016,-3430.91325453,0.00015724,2]
[402106583,1768520715051,-173.62158174,0.00015724,2]
[402106584,1768520715557,-3234.93262092,0.00015724,2]
[402106585,1768520717614,-10000.01,0.00015724,2]
[402106586,1768520717832,-10000.01,0.00015724,2]
[402106587,1768520718012,-557.21413688,0.00015724,2]
[402106588,1768520718050,-600.0,0.00015724,2]
[402106589,1768520718092,-195.0,0.00015724,2]
[402106590,1768520718259,-7295.58172624,0.00015724,2]
[402106592,1768520720732,-10000.01,0.00015724,2]
[402106593,1768520720989,-10000.01,0.00015724,2]
[402106594,1768520730507,928.56,0.00015624,2]
[402106595,1768520739619,201.94127366,0.00015624,2]
[402106596,1768520820903,166.66,0.00015002,2]
[402106597,1768520820966,166.66,0.00015318,2]
[402106598,1768520821018,166.66,0.00015634,2]
[402106600,1768520932129,1728.42,0.00015035,2]
[402106601,1768520962530,8271.59,0.00015624,2]
[402106602,1768520962563,10000.01,0.00015624,2]
[402106603,1768520962595,10000.01,0.00015624,2]
[402106604,1768520962629,10000.01,0.00015624,2]
[402106605,1768520962661,10000.01,0.00015624,2]
[402106606,1768520962694,10000.01,0.00015624,2]
[402106607,1768520962729,10000.01,0.00015624,2]
[402106608,1768520962762,10000.01,0.00015624,2]
[402106609,1768520962796,10000.01,0.00015624,2]
[402106610,1768520962830,10000.01,0.00015624,2]
[402106611,1768520973152,-8369.52872634,0.00015624,2]
[402106612,1768520973265,-10000.01,0.00015624,2]
[402106613,1768520973429,-10000.01,0.00015624,2]
[402106614,1768520973551,-10000.01,0.00015624,2]
[402106615,1768520973689,-10000.01,0.00015624,2]
[402106616,1768520973869,-10000.01,0.00015624,2]
[402106617,1768520974025,-10000.01,0.00015624,2]
[402106618,1768520974164,-10000.01,0.00015624,2]
[402106619,1768520974308,-10000.01,0.00015624,2]
[402106620,1768520974730,-10000.01,0.00015624,2]
[402106621,1768520979430,-10000.01,0.00015624,2]
[402106622,1768520979668,-10000.01,0.00015624,2]
[402106623,1768520979806,-10000.01,0.00015624,2]
[402106624,1768520979944,-10000.01,0.00015624,2]
[402106625,1768520980819,-10000.01,0.00015624,2]
[402106626,1768520981120,-10000.01,0.00015624,2]
[402106627,1768520981143,-10000.01,0.00015624,2]
[402106628,1768520981205,-10000.01,0.00015624,2]
[402106629,1768520981262,-10000.01,0.00015624,2]
[402106630,1768520985364,-10000.01,0.00015624,2]
[402106631,1768520985526,-10000.01,0.00015624,2]
[402106632,1768520985666,-10000.01,0.00015624,2]
[402106633,1768520985789,-10000.01,0.00015624,2]
[402106634,1768520985995,-10000.01,0.00015624,2]
[402106635,1768520986151,-10000.01,0.00015624,2]
[402106636,1768520986367,-10000.01,0.00015624,2]
[402106637,1768520986457,-10000.01,0.00015624,2]
[402106638,1768520986644,-10000.01,0.00015624,2]
[402106639,1768520988511,-10000.01,0.00015624,2]
[402106640,1768520991512,-10000.01,0.00015624,2]
[402106641,1768520991588,-10000.01,0.00015624,2]
[402106642,1768520991839,-10000.01,0.00015624,2]
[402106643,1768520991991,-10000.01,0.00015624,2]
[402106644,1768520992114,-10000.01,0.00015624,2]
[402106645,1768520992254,-10000.01,0.00015624,2]
[402106646,1768520992407,-10000.01,0.00015624,2]
[402106647,1768520992569,-10000.01,0.00015624,2]
[402106648,1768520994667,-10000.01,0.00015624,2]
[402106649,1768520994811,-10000.01,0.00015624,2]
[402106650,1768521006765,-844.88,0.00015614,3]
[402106651,1768521006802,-1200.0,0.00015623,2]
[402106652,1768521006838,-300.0,0.00015623,2]
[402106653,1768521006877,-300.0,0.00015623,2]
[402106654,1768521006914,-280.0,0.00015624,2]
[402106655,1768521007104,-4150.25,0.00015624,2]
[402106656,1768521007184,-10000.01,0.00015624,2]
[402106657,1768521007225,-10000.01,0.00015624,2]
[402106658,1768521007328,-10000.01,0.00015624,2]
[402106659,1768521007459,-10000.01,0.00015624,2]
[402106660,1768521009754,-10000.01,0.00015624,2]
[402106661,1768521009896,-10000.01,0.00015624,2]
[402106662,1768521010020,-10000.01,0.00015624,2]
[402106665,1768521031432,-5722.72505615,0.00015624,2]
[402106666,1768521031444,-399.30784984,0.00015624,2]
[402106667,1768521031456,-3293.30861604,0.00015624,2]
[402106668,1768521031468,-454.69711136,0.00015624,2]
[402106669,1768521031479,-2450.9437083,0.00015624,2]
[402106670,1768521031491,-290.6612758,0.00015624,2]
[402106686,1768521031864,-426596.44765617,0.00015624,2]
[402106688,1768521031873,-1142.53177309,0.0001564,2]
[402106690,1768521031883,-195.0,0.00015674,2]
[402106692,1768521031892,-480.0,0.00015723,2]
[402106694,1768521031901,-600.0,0.00015723,2]
[402106696,1768521031911,-198.93309843,0.00015723,2]
[402106698,1768521031920,-173.62158172,0.00015724,2]
[402106700,1768521031930,-1940.5778493,0.00015724,2]
[402106702,1768521031939,-300.0,0.00015724,2]
[402106704,1768521031948,-198.93309843,0.00015724,2]
[402106706,1768521031958,-500.0,0.00015724,2]
[402106708,1768521031967,-420.86356337,0.00015724,2]
[402106710,1768521031976,-198.64383752,0.00015746,2]
[402106712,1768521031985,-218.40209268,0.00015779,2]
[402106714,1768521031995,-300.0,0.00015814,2]
[402106716,1768521032004,-500.0,0.00015815,2]
[402106718,1768521032013,-151.0,0.00015815,2]
[402106720,1768521032023,-151.0,0.00015815,2]
[402106722,1768521032032,-151.0,0.00015815,2]
[402106724,1768521032041,-151.0,0.00015815,2]
[402106726,1768521032051,-151.0,0.00015815,2]
[402106728,1768521032060,-151.0,0.00015815,2]
[402106730,1768521032069,-151.0,0.00015815,2]
[402106732,1768521032078,-151.0,0.00015815,2]
[402106733,1768521032087,-151.0,0.00015815,2]
[402106736,1768521032096,-151.0,0.00015815,2]
[402106737,1768521032105,-151.0,0.00015815,2]
[402106739,1768521032115,-151.0,0.00015815,2]
[402106741,1768521032123,-200.0,0.00015815,2]
[402106743,1768521032133,-151.0,0.00015815,2]
[402106745,1768521032141,-151.0,0.00015815,2]
[402106747,1768521032151,-151.0,0.00015815,2]
[402106749,1768521032161,-151.0,0.00015815,2]
[402106751,1768521032171,-151.0,0.00015815,2]
[402106753,1768521032180,-151.0,0.00015815,2]
[402106755,1768521032189,-151.0,0.00015815,2]
[402106758,1768521032200,-151.0,0.00015815,2]
[402106760,1768521032209,-151.0,0.00015815,2]
[402106762,1768521032219,-151.0,0.00015815,2]
[402106763,1768521032228,-151.0,0.00015815,2]
[402106766,1768521032238,-151.0,0.00015815,2]
[402106768,1768521032247,-151.0,0.00015815,2]
[402106770,1768521032257,-200.0,0.00015815,2]
[402106772,1768521032269,-151.0,0.00015815,2]
[402106774,1768521032278,-151.0,0.00015815,2]
[402106775,1768521032287,-151.0,0.00015815,2]
[402106777,1768521032297,-151.0,0.00015815,2]
[402106779,1768521032307,-286.0113752,0.00015815,2]
[402106781,1768521032316,-1541.37,0.00015815,2]
[402106783,1768521032325,-500.0,0.00015823,2]
[402106785,1768521032334,-500.0,0.00015823,2]
[402106787,1768521032343,-500.0,0.00015823,2]
[402106789,1768521032352,-500.0,0.00015823,2]
[402106791,1768521032361,-500.0,0.00015823,2]
[402106793,1768521032371,-500.0,0.00015823,2]
[402106795,1768521032380,-500.0,0.00015823,2]
[402106797,1768521032389,-500.0,0.00015823,2]
[402106799,1768521032398,-500.0,0.00015823,2]
[402106801,1768521032407,-500.0,0.00015823,2]
[402106803,1768521032417,-500.0,0.00015823,2]
[402106805,1768521032426,-500.0,0.00015823,2]
[402106807,1768521032435,-372.81908888,0.00015823,2]
[402106809,1768521032443,-500.0,0.00015823,2]
[402106811,1768521032453,-500.0,0.00015823,2]
[402106813,1768521032462,-500.0,0.00015823,2]
[402106815,1768521032471,-150.99,0.00015823,2]
[402106817,1768521032480,-500.0,0.00015823,2]
[402106819,1768521032490,-500.0,0.00015823,2]
[402106821,1768521032499,-500.0,0.00015823,2]
[402106823,1768521032508,-500.0,0.00015823,2]
[402106825,1768521032517,-500.0,0.00015823,2]
[402106827,1768521032526,-500.0,0.00015823,2]
[402106829,1768521032535,-500.0,0.00015823,2]
[402106831,1768521032544,-500.0,0.00015823,2]
[402106833,1768521032553,-500.0,0.00015823,2]
[402106835,1768521032562,-500.0,0.00015823,2]
[402106837,1768521032571,-500.0,0.00015823,2]
[402106839,1768521032580,-500.0,0.00015823,2]
[402106841,1768521032589,-500.0,0.00015823,2]
[402106843,1768521032599,-500.0,0.00015823,2]
[402106845,1768521032608,-500.0,0.00015823,2]
[402106847,1768521032616,-500.0,0.00015823,2]
[402106849,1768521032625,-500.0,0.00015823,2]
[402106851,1768521032635,-500.0,0.00015823,2]
[402106853,1768521032645,-500.0,0.00015823,2]
[402106855,1768521032654,-500.0,0.00015823,2]
[402106857,1768521032663,-500.0,0.00015823,2]
[402106859,1768521032672,-500.0,0.00015823,2]
[402106861,1768521032681,-500.0,0.00015823,2]
[402106863,1768521032690,-500.0,0.00015823,2]
[402106865,1768521032700,-500.0,0.00015823,2]
[402106867,1768521032709,-500.0,0.00015823,2]
[402106869,1768521032718,-539.92526528,0.00015823,2]
[402106871,1768521032730,-500.0,0.00015823,2]
[402106873,1768521032739,-500.0,0.00015823,2]
[402106875,1768521032748,-500.0,0.00015823,2]
[402106877,1768521032758,-500.0,0.00015823,2]
[402106879,1768521032769,-500.0,0.00015823,2]
[402106881,1768521032778,-500.0,0.00015823,2]
[402106883,1768521032788,-200.0,0.00015823,2]
[402106885,1768521032798,-177.7958074,0.00015823,2]
[402106887,1768521032807,-500.0,0.00015823,2]
[402106889,1768521032816,-500.0,0.00015823,2]
[402106891,1768521032826,-500.0,0.00015823,2]
[402106893,1768521032835,-176.98147396,0.00015823,2]
[402106895,1768521032844,-500.0,0.00015823,2]
[402106897,1768521032854,-383.31742944,0.00015823,2]
[402106899,1768521032863,-942.08093612,0.00015824,2]
[402106901,1768521032873,-1000.0,0.00015824,2]
[402106903,1768521032882,-299.99,0.00015824,2]
[402106905,1768521032892,-9999.99,0.00015824,2]
[402106907,1768521032901,-500.0,0.0001583,2]
[402106909,1768521032911,-1600.0,0.0001588,2]
[402106911,1768521032921,-1000.0,0.00015918,2]
[402106913,1768521032930,-500.0,0.00015923,2]
[402106915,1768521032940,-500.0,0.00015923,2]
[402106917,1768521032950,-500.0,0.00015923,2]
[402106919,1768521032960,-500.0,0.00015923,2]
[402106920,1768521032969,-500.0,0.00015923,2]
[402106921,1768521032978,-500.0,0.00015923,2]
[402106922,1768521032987,-500.0,0.00015923,2]
[402106923,1768521032996,-500.0,0.00015923,2]
[402106924,1768521033005,-500.0,0.00015923,2]
[402106925,1768521033014,-500.0,0.00015923,2]
[402106926,1768521033024,-500.0,0.00015923,2]
[402106927,1768521033033,-500.0,0.00015923,2]
[402106928,1768521033042,-500.0,0.00015923,2]
[402106929,1768521033052,-500.0,0.00015923,2]
[402106930,1768521033061,-500.0,0.00015923,2]
[402106931,1768521033070,-500.0,0.00015923,2]
[402106932,1768521033079,-500.0,0.00015923,2]
[402106933,1768521033088,-483.79003433,0.00015923,2]
[402106934,1768521033097,-500.0,0.00015923,2]
[402106935,1768521033106,-500.0,0.00015923,2]
[402106936,1768521033115,-500.0,0.00015923,2]
[402106937,1768521033124,-500.0,0.00015923,2]
[402106938,1768521033134,-500.0,0.00015923,2]
[402106939,1768521033143,-500.0,0.00015923,2]
[402106940,1768521033152,-500.0,0.00015923,2]
[402106941,1768521033161,-470.6580939,0.00015923,2]
[402106942,1768521033171,-500.0,0.00015923,2]
[402106943,1768521033179,-500.0,0.00015923,2]
[402106944,1768521033189,-500.0,0.00015923,2]
[402106945,1768521033198,-500.0,0.00015923,2]
[402106946,1768521033207,-500.0,0.00015923,2]
[402106947,1768521033216,-614.35342236,0.00015923,2]